[Event "European Online Club-ch-E 2021"]
[Site "Online"]
[Date "2021.03.27"]
[Round "6.3"]
[White "Thereze, Ludovic"]
[Black "Apostolakakis, Konstantinos"]
[Result "0-1"]
[ECO "E20"]
[WhiteElo "2007"]
[BlackElo "2074"]
[Annotator "NA"]
[PlyCount "32"]
[EventDate "2021.03.27"]
[EventType "team-tourn"]
[EventCountry "NET"]
[SourceTitle "playchess.com"]
[Source "ChessBase"]
[SourceQuality "1"]
[TimeControl "900+5"]

1. d4 {[%emt 0:00:00]} Nf6 {[%emt 0:00:04]} 2. c4 {[%emt 0:00:04]} e6 {[%emt 0:00:02]} 3. Nc3 {[%emt 0:00:03]} Bb4 {[%emt 0:00:03]} 4. Bd2 {[%emt 0:00:03]} O-O {[%emt 0:00:11]} 5. g3 {[%emt 0:00:04]} d5 {[%emt 0:00:11]} 6. Bg2 {[%emt 0:00:04]} dxc4 {[%emt 0:00:30]} 7. Qa4 {[%emt 0:00:23]} c5 {[%emt 0:00:56]} 8. dxc5 {[%emt 0:00:38]} Bxc5 {[%emt 0:00:07]} 9. Qxc4 {[%emt 0:00:13]} Bxf2+ {[%emt 0:00:36]} 10. Kxf2 {[%emt 0:00:16]} Qxd2 {[%emt 0:00:04]} 11. Nf3 {[%emt 0:00:28]} Qd6 {[%emt 0:00:58]} 12. Rhd1 {[%emt 0:00:52]} Qb6+ {[%emt 0:00:06]} 13. Kf1 {[%emt 0:00:03]} Nc6 {[%emt 0:00:19]} 14. Rd2 {[%emt 0:00:47]} e5 {[%emt 0:00:15]} 15. Rad1 {[%emt 0:00:31]} Ng4 {[%emt 0:00:17]} 16. Ne4 {[%emt 0:00:22]} Ne3+ {[%emt 0:00:05]} 0-1

[Event "European Online Club-ch-E 2021"]
[Site "Online"]
[Date "2021.03.27"]
[Round "6.4"]
[White "Zisiadis, Dimitrios"]
[Black "Marchadour, Emilie"]
[Result "1-0"]
[ECO "A57"]
[WhiteElo "2042"]
[BlackElo "2006"]
[Annotator "NA"]
[PlyCount "105"]
[EventDate "2021.03.27"]
[EventType "team-tourn"]
[EventCountry "NET"]
[SourceTitle "playchess.com"]
[Source "ChessBase"]
[SourceQuality "1"]
[TimeControl "900+5"]

1. d4 {[%emt 0:00:00]} Nf6 {[%emt 0:00:05]} 2. c4 {[%emt 0:00:02]} c5 {[%emt 0:00:03]} 3. d5 {[%emt 0:00:06]} b5 {[%emt 0:00:05]} 4. f3 {[%emt 0:00:24]} bxc4 {[%emt 0:00:14]} 5. e4 {[%emt 0:00:02]} d6 {[%emt 0:00:03]} 6. Bxc4 {[%emt 0:00:11]} g6 {[%emt 0:00:02]} 7. Nc3 {[%emt 0:00:02]} Bg7 {[%emt 0:00:04]} 8. Nge2 {[%emt 0:00:02]} O-O {[%emt 0:00:02]} 9. O-O {[%emt 0:00:02]} Ba6 {[%emt 0:00:11]} 10. Bd3 {[%emt 0:01:19]} Qb6 {[%emt 0:00:58]} 11. Kh1 {[%emt 0:00:07]} Nbd7 {[%emt 0:00:23]} 12. Rb1 {[%emt 0:00:27]} Ne5 {[%emt 0:01:11]} 13. Bxa6 {[%emt 0:00:31]} Qxa6 {[%emt 0:00:03]} 14. f4 {[%emt 0:00:04]} Nd3 {[%emt 0:00:54]} 15. Be3 {[%emt 0:00:13]} Rab8 {[%emt 0:01:11]} 16. Qd2 {[%emt 0:00:14]} Rb4 {[%emt 0:02:53]} 17. Rfd1 {[%emt 0:01:01]} c4 {[%emt 0:00:28]} 18. Nc1 {[%emt 0:03:31]} Nxb2 {[%emt 0:02:01]} 19. Rxb2 {[%emt 0:01:00]} Nxe4 {[%emt 0:00:06]} 20. Nxe4 {[%emt 0:00:05]} Rxb2 {[%emt 0:00:04]} 21. Qe1 {[%emt 0:00:04]} Rc8 {[%emt 0:00:53]} 22. Nc3 {[%emt 0:01:30]} Qa3 {[%emt 0:01:21]} 23. Bd4 {[%emt 0:00:36]} Bxd4 {[%emt 0:00:18]} 24. Rxd4 {[%emt 0:00:06]} Rc2 {[%emt 0:00:06]} 25. N1e2 {[%emt 0:00:07]} Qb2 {[%emt 0:00:34]} 26. h3 {[%emt 0:00:54]} a5 {[%emt 0:00:38]} 27. Re4 {[%emt 0:00:12]} Rc7 {[%emt 0:00:09]} 28. Qg3 {[%emt 0:00:22]} Qa1+ {[%emt 0:00:27]} 29. Kh2 {[%emt 0:00:08]} Qf1 {[%emt 0:00:38]} 30. Qe3 {[%emt 0:00:24]} Kf8 {[%emt 0:00:03]} 31. Qd4 {[%emt 0:00:49]} f6 {[%emt 0:00:27]} 32. Qb6 {[%emt 0:00:12]} Rd7 {[%emt 0:00:25]} 33. Qxa5 {[%emt 0:01:24]} f5 {[%emt 0:00:11]} 34. Re6 {[%emt 0:00:26]} Qf2 {[%emt 0:00:27]} 35. Qa4 {[%emt 0:00:19]} Rxe2 {[%emt 0:00:07]} 36. Nxe2 {[%emt 0:00:08]} Rb7 {[%emt 0:00:04]} 37. Qa8+ {[%emt 0:00:05]} Kg7 {[%emt 0:00:03]} 38. Qxb7 {[%emt 0:00:05]} c3 {[%emt 0:00:02]} 39. Qxe7+ {[%emt 0:00:03]} Kh6 {[%emt 0:00:02]} 40. Qf8+ {[%emt 0:00:35]} Kh5 {[%emt 0:00:11]} 41. Ng3+ {[%emt 0:00:10]} Qxg3+ {[%emt 0:00:05]} 42. Kxg3 {[%emt 0:00:03]} c2 {[%emt 0:00:02]} 43. Qc8 {[%emt 0:00:14]} Kh6 {[%emt 0:00:12]} 44. Qxc2 {[%emt 0:00:09]} Kh5 {[%emt 0:00:04]} 45. Qe2+ {[%emt 0:00:03]} Kh6 {[%emt 0:00:02]} 46. Kf2 {[%emt 0:00:05]} Kg7 {[%emt 0:00:06]} 47. g4 {[%emt 0:00:09]} fxg4 {[%emt 0:00:05]} 48. hxg4 {[%emt 0:00:02]} Kh6 {[%emt 0:00:06]} 49. g5+ {[%emt 0:00:03]} Kg7 {[%emt 0:00:02]} 50. Re7+ {[%emt 0:00:01]} Kf8 {[%emt 0:00:02]} 51. Ra7 {[%emt 0:00:06]} h5 {[%emt 0:00:05]} 52. Qe7+ {[%emt 0:00:03]} Kg8 {[%emt 0:00:04]} 53. Qd8# {[%emt 0:00:02]} 1-0

[Event "European Online Club-ch-E 2021"]
[Site "Online"]
[Date "2021.03.27"]
[Round "6.5"]
[White "Ozturk Orenli, Kubra"]
[Black "Dedebas, Emre Emin"]
[Result "1/2-1/2"]
[ECO "D21"]
[WhiteElo "2330"]
[BlackElo "2335"]
[Annotator "NA"]
[PlyCount "61"]
[EventDate "2021.03.27"]
[EventType "team-tourn"]
[EventCountry "NET"]
[SourceTitle "playchess.com"]
[Source "ChessBase"]
[SourceQuality "1"]
[TimeControl "900+5"]

1. d4 {[%emt 0:00:00]} d5 {[%emt 0:00:02]} 2. c4 {[%emt 0:00:07]} dxc4 {[%emt 0:00:02]} 3. Nf3 {[%emt 0:00:04]} c5 {[%emt 0:00:02]} 4. e3 {[%emt 0:00:26]} cxd4 {[%emt 0:00:05]} 5. Bxc4 {[%emt 0:00:03]} Qc7 {[%emt 0:00:05]} 6. Qb3 {[%emt 0:01:30]} e6 {[%emt 0:00:04]} 7. exd4 {[%emt 0:00:12]} Nc6 {[%emt 0:00:11]} 8. O-O {[%emt 0:00:30]} a6 {[%emt 0:00:18]} 9. Be2 {[%emt 0:01:07]} Nf6 {[%emt 0:00:10]} 10. Nc3 {[%emt 0:00:03]} Be7 {[%emt 0:00:08]} 11. Bg5 {[%emt 0:00:13]} O-O {[%emt 0:00:37]} 12. Rac1 {[%emt 0:00:11]} Qa5 {[%emt 0:08:24]} 13. Rfd1 {[%emt 0:00:47]} Rd8 {[%emt 0:00:39]} 14. Bh4 {[%emt 0:00:55]} Nd5 {[%emt 0:01:29]} 15. Nxd5 {[%emt 0:00:29]} Qxd5 {[%emt 0:00:16]} 16. Qxd5 {[%emt 0:01:03]} Rxd5 {[%emt 0:00:03]} 17. Bc4 {[%emt 0:01:01]} Rd8 {[%emt 0:00:13]} 18. d5 {[%emt 0:01:42]} exd5 {[%emt 0:00:27]} 19. Bxd5 {[%emt 0:00:07]} Bxh4 {[%emt 0:00:48]} 20. Nxh4 {[%emt 0:00:04]} Be6 {[%emt 0:00:33]} 21. Bxe6 {[%emt 0:00:26]} fxe6 {[%emt 0:00:03]} 22. Nf3 {[%emt 0:00:01]} h6 {[%emt 0:00:05]} 23. Kf1 {[%emt 0:00:29]} Kf7 {[%emt 0:00:03]} 24. Ke2 {[%emt 0:00:01]} Kf6 {[%emt 0:00:01]} 25. a3 {[%emt 0:00:11]} g5 {[%emt 0:00:08]} 26. h3 {[%emt 0:00:06]} Rac8 {[%emt 0:00:11]} 27. Rc3 {[%emt 0:00:19]} Rxd1 {[%emt 0:00:05]} 28. Kxd1 {[%emt 0:00:02]} Rd8+ {[%emt 0:00:01]} 29. Ke2 {[%emt 0:00:02]} Rd5 {[%emt 0:00:06]} 30. Rb3 {[%emt 0:01:31]} Na5 {[%emt 0:00:33]} 31. Rd3 {[%emt 0:00:19]} 1/2-1/2

[Event "European Online Club-ch-E 2021"]
[Site "Online"]
[Date "2021.03.27"]
[Round "6.6"]
[White "Angun, Batu"]
[Black "Caglar, Sila"]
[Result "1-0"]
[ECO "D24"]
[WhiteElo "2326"]
[BlackElo "2250"]
[Annotator "NA"]
[PlyCount "101"]
[EventDate "2021.03.27"]
[EventType "team-tourn"]
[EventCountry "NET"]
[SourceTitle "playchess.com"]
[Source "ChessBase"]
[SourceQuality "1"]
[TimeControl "900+5"]

1. d4 {[%emt 0:00:00]} Nf6 {[%emt 0:00:05]} 2. c4 {[%emt 0:00:04]} e6 {[%emt 0:00:02]} 3. Nf3 {[%emt 0:00:03]} d5 {[%emt 0:00:04]} 4. Nc3 {[%emt 0:00:03]} dxc4 {[%emt 0:00:03]} 5. e4 {[%emt 0:00:06]} b5 {[%emt 0:00:07]} 6. e5 {[%emt 0:00:03]} Nd5 {[%emt 0:00:03]} 7. Nxb5 {[%emt 0:00:06]} Nb6 {[%emt 0:00:02]} 8. Be2 {[%emt 0:00:11]} Nc6 {[%emt 0:00:26]} 9. O-O {[%emt 0:00:20]} Be7 {[%emt 0:00:04]} 10. Nc3 {[%emt 0:00:21]} O-O {[%emt 0:00:37]} 11. Be3 {[%emt 0:00:19]} Bb7 {[%emt 0:00:44]} 12. Rc1 {[%emt 0:00:06]} Nb4 {[%emt 0:00:17]} 13. a3 {[%emt 0:00:48]} N4d5 {[%emt 0:00:05]} 14. Nxd5 {[%emt 0:00:03]} exd5 {[%emt 0:00:40]} 15. Qc2 {[%emt 0:00:29]} a5 {[%emt 0:00:41]} 16. Nd2 {[%emt 0:00:56]} Rc8 {[%emt 0:00:37]} 17. f4 {[%emt 0:00:47]} c5 {[%emt 0:00:15]} 18. Nf3 {[%emt 0:00:03]} Nd7 {[%emt 0:00:47]} 19. Rcd1 {[%emt 0:00:09]} cxd4 {[%emt 0:00:08]} 20. Nxd4 {[%emt 0:00:05]} Bc5 {[%emt 0:00:17]} 21. Bf3 {[%emt 0:00:49]} Qb6 {[%emt 0:00:43]} 22. Qf2 {[%emt 0:00:04]} Rfd8 {[%emt 0:00:37]} 23. Nf5 {[%emt 0:00:14]} Bxe3 {[%emt 0:00:11]} 24. Qxe3 {[%emt 0:00:04]} Qxe3+ {[%emt 0:00:10]} 25. Nxe3 {[%emt 0:00:02]} Nb6 {[%emt 0:00:27]} 26. Nf5 {[%emt 0:00:20]} Rc7 {[%emt 0:00:23]} 27. Rf2 {[%emt 0:00:16]} g6 {[%emt 0:00:26]} 28. Nd4 {[%emt 0:00:50]} Ba6 {[%emt 0:00:29]} 29. Rfd2 {[%emt 0:00:35]} c3 {[%emt 0:00:10]} 30. Rc2 {[%emt 0:00:03]} Na4 {[%emt 0:01:34]} 31. bxc3 {[%emt 0:00:25]} Nxc3 {[%emt 0:00:27]} 32. Rdc1 {[%emt 0:00:04]} Rdc8 {[%emt 0:00:04]} 33. Bg4 {[%emt 0:00:04]} Ne2+ {[%emt 0:01:14]} 34. Nxe2 {[%emt 0:00:07]} Rxc2 {[%emt 0:00:19]} 35. Bxc8 {[%emt 0:00:05]} Rxc1+ {[%emt 0:00:11]} 36. Nxc1 {[%emt 0:00:04]} Bxc8 {[%emt 0:00:02]} 37. Kf2 {[%emt 0:00:06]} f6 {[%emt 0:00:23]} 38. Ke3 {[%emt 0:00:09]} Bf5 {[%emt 0:00:39]} 39. Kd4 {[%emt 0:00:14]} Be4 {[%emt 0:00:02]} 40. g3 {[%emt 0:00:11]} Kf7 {[%emt 0:00:24]} 41. Nb3 {[%emt 0:00:15]} Ke6 {[%emt 0:00:20]} 42. Nc5+ {[%emt 0:01:49]} Ke7 {[%emt 0:00:46]} 43. Nxe4 {[%emt 0:00:09]} dxe4 {[%emt 0:00:03]} 44. Kxe4 {[%emt 0:00:02]} fxe5 {[%emt 0:00:02]} 45. fxe5 {[%emt 0:00:19]} Ke6 {[%emt 0:00:15]} 46. a4 {[%emt 0:00:16]} h6 {[%emt 0:00:09]} 47. h3 {[%emt 0:00:18]} Ke7 {[%emt 0:00:03]} 48. Kd5 {[%emt 0:00:04]} Kd7 {[%emt 0:00:04]} 49. e6+ {[%emt 0:00:04]} Ke7 {[%emt 0:00:06]} 50. Ke5 {[%emt 0:00:02]} Ke8 {[%emt 0:00:14]} 51. Kf6 {[%emt 0:00:05]} 1-0

[Event "European Online Club-ch-E 2021"]
[Site "Online"]
[Date "2021.03.27"]
[Round "6.7"]
[White "Kocyigit, Buse Naz"]
[Black "Ozenir, Ekin Baris"]
[Result "1/2-1/2"]
[ECO "A47"]
[WhiteElo "2143"]
[BlackElo "2309"]
[Annotator "NA"]
[PlyCount "83"]
[EventDate "2021.03.27"]
[EventType "team-tourn"]
[EventCountry "NET"]
[SourceTitle "playchess.com"]
[Source "ChessBase"]
[SourceQuality "1"]
[TimeControl "900+5"]

1. Nf3 {[%emt 0:00:00]} Nf6 {[%emt 0:00:05]} 2. d4 {[%emt 0:00:07]} b6 {[%emt 0:00:16]} 3. Bg5 {[%emt 0:00:37]} e6 {[%emt 0:00:52]} 4. e4 {[%emt 0:00:04]} h6 {[%emt 0:00:10]} 5. Bxf6 {[%emt 0:00:09]} Qxf6 {[%emt 0:00:04]} 6. Bd3 {[%emt 0:00:05]} Bb7 {[%emt 0:00:07]} 7. Nbd2 {[%emt 0:00:26]} Qd8 {[%emt 0:00:43]} 8. Qe2 {[%emt 0:00:19]} d6 {[%emt 0:00:11]} 9. a4 {[%emt 0:00:50]} Nd7 {[%emt 0:01:41]} 10. a5 {[%emt 0:00:32]} Rb8 {[%emt 0:00:58]} 11. O-O {[%emt 0:00:19]} Be7 {[%emt 0:00:05]} 12. e5 {[%emt 0:01:23]} Bxf3 {[%emt 0:01:02]} 13. Nxf3 {[%emt 0:00:18]} d5 {[%emt 0:00:41]} 14. axb6 {[%emt 0:01:10]} axb6 {[%emt 0:00:16]} 15. Bb5 {[%emt 0:00:42]} O-O {[%emt 0:01:43]} 16. Bc6 {[%emt 0:01:09]} b5 {[%emt 0:00:23]} 17. Bxb5 {[%emt 0:00:28]} c6 {[%emt 0:01:11]} 18. Bxc6 {[%emt 0:00:22]} Rxb2 {[%emt 0:00:05]} 19. Ba4 {[%emt 0:02:46]} Rb8 {[%emt 0:00:48]} 20. Rfb1 {[%emt 0:00:09]} Nb6 {[%emt 0:00:13]} 21. Bb3 {[%emt 0:00:08]} Qc7 {[%emt 0:00:26]} 22. Ra6 {[%emt 0:00:53]} Ra8 {[%emt 0:00:51]} 23. Rba1 {[%emt 0:00:28]} Rxa6 {[%emt 0:00:13]} 24. Rxa6 {[%emt 0:00:03]} Ra8 {[%emt 0:00:09]} 25. Rxa8+ {[%emt 0:00:08]} Nxa8 {[%emt 0:00:02]} 26. Qb5 {[%emt 0:00:12]} Nb6 {[%emt 0:00:31]} 27. h4 {[%emt 0:00:48]} Nc8 {[%emt 0:01:09]} 28. Qd3 {[%emt 0:00:50]} Bb4 {[%emt 0:00:39]} 29. Qb5 {[%emt 0:00:14]} Bf8 {[%emt 0:00:08]} 30. c4 {[%emt 0:00:50]} dxc4 {[%emt 0:00:04]} 31. Qxc4 {[%emt 0:00:15]} Qxc4 {[%emt 0:00:11]} 32. Bxc4 {[%emt 0:00:01]} Nb6 {[%emt 0:00:03]} 33. Bb3 {[%emt 0:00:04]} Be7 {[%emt 0:00:09]} 34. Kf1 {[%emt 0:00:15]} Kf8 {[%emt 0:00:03]} 35. Ke2 {[%emt 0:00:15]} Bb4 {[%emt 0:00:22]} 36. Kd3 {[%emt 0:00:10]} Ke7 {[%emt 0:00:27]} 37. g4 {[%emt 0:00:20]} Ba3 {[%emt 0:00:14]} 38. Ke4 {[%emt 0:00:07]} Nd7 {[%emt 0:00:11]} 39. Ba4 {[%emt 0:00:08]} Nb6 {[%emt 0:00:04]} 40. Bb3 {[%emt 0:00:01]} Nd7 {[%emt 0:00:01]} 41. Ba4 {[%emt 0:00:01]} Nb6 {[%emt 0:00:02]} 42. Bb3 {[%emt 0:00:10]} 1/2-1/2

[Event "European Online Club-ch-E 2021"]
[Site "Online"]
[Date "2021.03.27"]
[Round "6.8"]
[White "Tarlabasi, Emirhan"]
[Black "Ince, Safiye Oyku"]
[Result "1-0"]
[ECO "E12"]
[WhiteElo "2301"]
[BlackElo "1995"]
[Annotator "NA"]
[PlyCount "61"]
[EventDate "2021.03.27"]
[EventType "team-tourn"]
[EventCountry "NET"]
[SourceTitle "playchess.com"]
[Source "ChessBase"]
[SourceQuality "1"]
[TimeControl "900+5"]

1. d4 {[%emt 0:00:00]} Nf6 {[%emt 0:00:04]} 2. c4 {[%emt 0:00:04]} e6 {[%emt 0:00:03]} 3. Nf3 {[%emt 0:00:05]} b6 {[%emt 0:00:03]} 4. a3 {[%emt 0:00:04]} Ba6 {[%emt 0:00:15]} 5. Qc2 {[%emt 0:00:17]} c5 {[%emt 0:00:04]} 6. d5 {[%emt 0:00:13]} exd5 {[%emt 0:00:04]} 7. cxd5 {[%emt 0:00:13]} g6 {[%emt 0:00:17]} 8. Nc3 {[%emt 0:01:30]} Bg7 {[%emt 0:00:13]} 9. h4 {[%emt 0:00:16]} d6 {[%emt 0:03:09]} 10. Bf4 {[%emt 0:03:59]} b5 {[%emt 0:01:53]} 11. e3 {[%emt 0:01:17]} O-O {[%emt 0:03:40]} 12. h5 {[%emt 0:02:04]} b4 {[%emt 0:00:40]} 13. axb4 {[%emt 0:00:44]} Bxf1 {[%emt 0:00:07]} 14. Kxf1 {[%emt 0:00:04]} cxb4 {[%emt 0:00:14]} 15. Nb5 {[%emt 0:00:17]} Qb6 {[%emt 0:01:46]} 16. Nc7 {[%emt 0:01:50]} b3 {[%emt 0:02:06]} 17. Nxa8 {[%emt 0:01:10]} bxc2 {[%emt 0:00:03]} 18. Nxb6 {[%emt 0:00:02]} axb6 {[%emt 0:00:01]} 19. h6 {[%emt 0:00:55]} Bh8 {[%emt 0:00:04]} 20. Rc1 {[%emt 0:00:34]} Rc8 {[%emt 0:00:55]} 21. Nd4 {[%emt 0:00:23]} Nxd5 {[%emt 0:00:19]} 22. Rxc2 {[%emt 0:00:08]} Rxc2 {[%emt 0:00:09]} 23. Nxc2 {[%emt 0:00:03]} Nxf4 {[%emt 0:00:04]} 24. exf4 {[%emt 0:00:01]} Bxb2 {[%emt 0:00:13]} 25. Ke2 {[%emt 0:00:15]} Nd7 {[%emt 0:00:09]} 26. Rd1 {[%emt 0:00:10]} Kf8 {[%emt 0:00:26]} 27. Rxd6 {[%emt 0:00:07]} Ke7 {[%emt 0:00:02]} 28. Rc6 {[%emt 0:00:07]} Bf6 {[%emt 0:00:04]} 29. Kd3 {[%emt 0:00:17]} b5 {[%emt 0:00:03]} 30. Ne3 {[%emt 0:00:06]} b4 {[%emt 0:00:04]} 31. Nd5+ {[%emt 0:00:02]} 1-0

[Event "European Online Club-ch-E 2021"]
[Site "Online"]
[Date "2021.03.27"]
[Round "6.10"]
[White "Chukavin, Kirill"]
[Black "Guseinov, Gadir"]
[Result "0-1"]
[ECO "B23"]
[WhiteElo "2384"]
[BlackElo "2665"]
[Annotator "ChessBase"]
[PlyCount "26"]
[EventDate "2021.03.27"]
[EventType "team-tourn"]
[EventCountry "NET"]
[SourceTitle "playchess.com"]
[Source "ChessBase"]
[SourceQuality "1"]
[TimeControl "900+5"]

1. e4 {[%emt 0:00:00]} c5 {[%emt 0:00:02]} 2. Nc3 {[%emt 0:00:02]} g6 {[%emt 0:00:07]} 3. d4 {[%emt 0:00:26]} cxd4 {[%emt 0:00:02]} 4. Qxd4 {[%emt 0:00:02]} Nf6 {[%emt 0:00:01]} 5. e5 {[%emt 0:01:39]} Nc6 {[%emt 0:00:04]} 6. Qf4 {[%emt 0:00:02]} Nh5 {[%emt 0:00:07]} 7. Qe4 {[%emt 0:00:31]} d6 {[%emt 0:01:17]} 8. g4 {[%emt 0:01:40]} f5 {[%emt 0:00:03]} 9. gxf5 {[%emt 0:01:24]} Bxf5 {[%emt 0:00:04]} 10. Qa4 {[%emt 0:00:01]} Bg7 {[%emt 0:00:08]} 11. Nf3 {[%emt 0:00:42]} O-O {[%emt 0:00:09]} 12. Qb3+ {[%emt 0:03:24]} Kh8 {[%emt 0:00:08]} 13. Qxb7 {[%emt 0:00:16]} Rc8 {[%emt 0:00:10]} 0-1

[Event "European Online Club-ch-E 2021"]
[Site "Online"]
[Date "2021.03.27"]
[Round "6.11"]
[White "Durarbayli, Vasif"]
[Black "Kukk, Sander"]
[Result "1-0"]
[ECO "B08"]
[WhiteElo "2606"]
[BlackElo "2230"]
[Annotator "ChessBase"]
[PlyCount "45"]
[EventDate "2021.03.27"]
[EventType "team-tourn"]
[EventCountry "NET"]
[SourceTitle "playchess.com"]
[Source "ChessBase"]
[SourceQuality "1"]
[TimeControl "900+5"]

1. e4 {[%emt 0:00:00]} g6 {[%emt 0:00:03]} 2. d4 {[%emt 0:00:04]} Bg7 {[%emt 0:00:01]} 3. Nc3 {[%emt 0:00:02]} d6 {[%emt 0:00:02]} 4. Be3 {[%emt 0:00:34]} Nf6 {[%emt 0:00:12]} 5. h3 {[%emt 0:00:12]} O-O {[%emt 0:00:02]} 6. Nf3 {[%emt 0:00:04]} c6 {[%emt 0:00:14]} 7. Qd2 {[%emt 0:00:14]} Qc7 {[%emt 0:00:27]} 8. Bh6 {[%emt 0:00:07]} e5 {[%emt 0:00:06]} 9. O-O-O {[%emt 0:00:14]} Nbd7 {[%emt 0:00:25]} 10. h4 {[%emt 0:02:04]} b5 {[%emt 0:03:39]} 11. Bxg7 {[%emt 0:04:33]} Kxg7 {[%emt 0:00:00]} 12. dxe5 {[%emt 0:00:03]} dxe5 {[%emt 0:00:06]} 13. h5 {[%emt 0:00:28]} Nc5 {[%emt 0:02:26]} 14. Qg5 {[%emt 0:04:02]} h6 {[%emt 0:02:38]} 15. Qh4 {[%emt 0:00:04]} Rh8 {[%emt 0:00:37]} 16. hxg6 {[%emt 0:00:12]} fxg6 {[%emt 0:00:02]} 17. Bxb5 {[%emt 0:01:06]} g5 {[%emt 0:01:49]} 18. Nxg5 {[%emt 0:00:03]} cxb5 {[%emt 0:00:11]} 19. Nf3 {[%emt 0:01:20]} Qe7 {[%emt 0:01:12]} 20. Qg3+ {[%emt 0:00:11]} Ng4 {[%emt 0:00:43]} 21. Rh5 {[%emt 0:00:14]} Qf7 {[%emt 0:00:24]} 22. Rxe5 {[%emt 0:00:03]} b4 {[%emt 0:00:44]} 23. Rxc5 {[%emt 0:00:07]} 1-0

[Event "European Online Club-ch-E 2021"]
[Site "Online"]
[Date "2021.03.27"]
[Round "6.12"]
[White "Liiva, Riho"]
[Black "Safarli, Eltaj"]
[Result "1/2-1/2"]
[ECO "C49"]
[WhiteElo "2443"]
[BlackElo "2598"]
[Annotator "ChessBase"]
[PlyCount "124"]
[EventDate "2021.03.27"]
[EventType "team-tourn"]
[EventCountry "NET"]
[SourceTitle "playchess.com"]
[Source "ChessBase"]
[SourceQuality "1"]
[TimeControl "900+5"]

1. e4 {[%emt 0:00:00]} e5 {[%emt 0:00:11]} 2. Nf3 {[%emt 0:00:14]} Nc6 {[%emt 0:00:02]} 3. Nc3 {[%emt 0:00:04]} Nf6 {[%emt 0:00:08]} 4. Bb5 {[%emt 0:00:05]} Bb4 {[%emt 0:00:06]} 5. O-O {[%emt 0:00:11]} O-O {[%emt 0:00:03]} 6. Bxc6 {[%emt 0:00:21]} dxc6 {[%emt 0:00:05]} 7. d3 {[%emt 0:00:05]} Nd7 {[%emt 0:01:05]} 8. Ne2 {[%emt 0:00:34]} Re8 {[%emt 0:00:52]} 9. h3 {[%emt 0:00:10]} Nf8 {[%emt 0:00:03]} 10. Nh2 {[%emt 0:00:03]} Ng6 {[%emt 0:00:13]} 11. Kh1 {[%emt 0:00:13]} Bd6 {[%emt 0:01:34]} 12. f4 {[%emt 0:00:13]} exf4 {[%emt 0:00:02]} 13. Nxf4 {[%emt 0:00:02]} c5 {[%emt 0:00:22]} 14. Qf3 {[%emt 0:00:48]} Be6 {[%emt 0:01:12]} 15. Nxe6 {[%emt 0:01:42]} fxe6 {[%emt 0:00:03]} 16. Qh5 {[%emt 0:00:06]} Bxh2 {[%emt 0:01:07]} 17. Kxh2 {[%emt 0:00:14]} Qd4 {[%emt 0:00:12]} 18. Qe2 {[%emt 0:01:08]} Rf8 {[%emt 0:00:15]} 19. c3 {[%emt 0:00:13]} Qd6+ {[%emt 0:01:34]} 20. Kg1 {[%emt 0:04:44]} Rxf1+ {[%emt 0:00:07]} 21. Qxf1 {[%emt 0:00:02]} Rf8 {[%emt 0:00:15]} 22. Qe2 {[%emt 0:00:24]} Ne5 {[%emt 0:01:12]} 23. Be3 {[%emt 0:00:56]} Qxd3 {[%emt 0:00:07]} 24. Re1 {[%emt 0:00:06]} Qxe2 {[%emt 0:01:12]} 25. Rxe2 {[%emt 0:00:06]} b6 {[%emt 0:00:01]} 26. Bf2 {[%emt 0:00:09]} Nd3 {[%emt 0:01:49]} 27. Bg3 {[%emt 0:00:05]} c6 {[%emt 0:00:47]} 28. Bd6 {[%emt 0:00:11]} Rd8 {[%emt 0:00:23]} 29. e5 {[%emt 0:00:03]} c4 {[%emt 0:00:08]} 30. b3 {[%emt 0:00:03]} cxb3 {[%emt 0:00:30]} 31. axb3 {[%emt 0:00:03]} Rd7 {[%emt 0:00:01]} 32. Re3 {[%emt 0:00:20]} Nf4 {[%emt 0:00:17]} 33. c4 {[%emt 0:00:22]} a5 {[%emt 0:00:23]} 34. h4 {[%emt 0:01:12]} b5 {[%emt 0:00:08]} 35. g3 {[%emt 0:00:03]} Ng6 {[%emt 0:00:05]} 36. cxb5 {[%emt 0:00:23]} cxb5 {[%emt 0:00:02]} 37. Rc3 {[%emt 0:00:01]} Ne7 {[%emt 0:00:12]} 38. Rc5 {[%emt 0:00:12]} Nf5 {[%emt 0:00:30]} 39. Rxb5 {[%emt 0:00:08]} Nxd6 {[%emt 0:00:02]} 40. exd6 {[%emt 0:00:04]} Rxd6 {[%emt 0:00:01]} 41. Kf2 {[%emt 0:00:43]} Rd5 {[%emt 0:00:06]} 42. Rb7 {[%emt 0:00:02]} Rd4 {[%emt 0:00:22]} 43. Re7 {[%emt 0:00:14]} Rb4 {[%emt 0:00:14]} 44. Rxe6 {[%emt 0:00:07]} Rxb3 {[%emt 0:00:01]} 45. Ra6 {[%emt 0:00:02]} Ra3 {[%emt 0:00:07]} 46. h5 {[%emt 0:00:15]} a4 {[%emt 0:00:09]} 47. Ra7 {[%emt 0:00:16]} Ra1 {[%emt 0:00:05]} 48. Kf3 {[%emt 0:00:03]} a3 {[%emt 0:00:05]} 49. Kg4 {[%emt 0:00:02]} h6 {[%emt 0:00:04]} 50. Ra8+ {[%emt 0:00:04]} Kf7 {[%emt 0:00:01]} 51. Ra6 {[%emt 0:00:07]} a2 {[%emt 0:00:13]} 52. Ra3 {[%emt 0:00:09]} Ke6 {[%emt 0:00:03]} 53. Ra6+ {[%emt 0:00:02]} Kd5 {[%emt 0:00:03]} 54. Ra5+ {[%emt 0:00:01]} Ke4 {[%emt 0:00:02]} 55. Ra8 {[%emt 0:00:04]} Ke3 {[%emt 0:00:02]} 56. Ra3+ {[%emt 0:00:03]} Kd4 {[%emt 0:00:02]} 57. Ra4+ {[%emt 0:00:02]} Kc3 {[%emt 0:00:01]} 58. Ra8 {[%emt 0:00:02]} Kb3 {[%emt 0:00:02]} 59. Rb8+ {[%emt 0:00:02]} Kc4 {[%emt 0:00:01]} 60. Ra8 {[%emt 0:00:03]} Kb3 {[%emt 0:00:01]} 61. Rb8+ {[%emt 0:00:02]} Kc4 {[%emt 0:00:02]} 62. Ra8 {[%emt 0:00:01]} Kb3 {[%emt 0:00:01]} 1/2-1/2